fUST/lending_fUST_20250227
["ID","MTS","AMOUNT","RATE_DAILY","PERIOD"]
[354612836,1740595912236,-330.63053981,0.0005589,120]
[354612838,1740595912246,-919.11,0.0005589,120]
[354612840,1740595912256,-1139.22,0.0005589,120]
[354612842,1740595912265,-1427.81,0.0005589,120]
[354612844,1740595912275,-3966.28,0.0005589,120]
[354612846,1740595912286,-220.17422325,0.0005589,21]
[354612848,1740595912295,-1179.25,0.0005589,120]
[354612851,1740595912305,-643.49,0.0005589,120]
[354612853,1740595912315,-9738.58,0.0005589,120]
[354612855,1740595912325,-801.82,0.0005589,120]
[354612857,1740595912335,-911.86,0.0005589,120]
[354612858,1740595912345,-500.0,0.0005589,120]
[354612861,1740595912355,-552.77,0.0005589,120]
[354612863,1740595912365,-500.05,0.0005589,120]
[354612865,1740595912375,-500.0,0.0005589,120]
[354612867,1740595912384,-587.37,0.0005589,120]
[354612869,1740595912394,-11052.45,0.0005589,120]
[354612871,1740595912403,-517.75,0.0005589,120]
[354612873,1740595912413,-3684.76,0.0005589,120]
[354612875,1740595912423,-3499.84,0.0005589,120]
[354612877,1740595912433,-1015.05,0.0005589,120]
[354612879,1740595912442,-13581.8,0.0005589,120]
[354612881,1740595912452,-1570.34,0.0005589,120]
[354612883,1740595912461,-15292.47,0.0005589,120]
[354612885,1740595912471,-500.0,0.0005589,120]
[354612887,1740595912481,-1020.31,0.0005589,120]
[354612889,1740595912490,-690.39,0.0005589,120]
[354612891,1740595912500,-3105.4,0.0005589,120]
[354612893,1740595912509,-834.44,0.0005589,30]
[354612895,1740595912520,-2309.16,0.0005589,120]
[354612897,1740595912530,-10799.99,0.0005589,120]
[354612899,1740595912539,-850.01,0.0005589,120]
[354612901,1740595912549,-500.0,0.0005589,120]
[354612903,1740595912558,-4233.08,0.0005589,120]
[354612905,1740595912567,-4180.32,0.0005589,120]
[354612907,1740595912576,-2800.4,0.0005589,120]
[354612909,1740595912586,-2084.49,0.0005589,120]
[354612911,1740595912595,-583.3,0.0005589,120]
[354612913,1740595912605,-2951.73,0.0005589,120]
[354612915,1740595912617,-2431.59,0.0005589,120]
[354612917,1740595912626,-1918.79,0.0005589,120]
[354612919,1740595912636,-1679.17,0.0005589,120]
[354612921,1740595912646,-514.65,0.0005589,120]
[354612923,1740595912655,-2627.04,0.0005589,120]
[354612925,1740595912666,-1409.36,0.0005589,120]
[354612927,1740595912675,-785.21,0.0005589,120]
[354612929,1740595912685,-834.81,0.0005589,120]
[354612931,1740595912695,-3016.52,0.0005589,120]
[354612933,1740595912704,-2867.38,0.0005589,120]
[354612935,1740595912714,-684.79,0.0005589,120]
[354612937,1740595912723,-928.1,0.0005589,120]
[354612939,1740595912733,-511.43,0.0005589,120]
[354612942,1740595912743,-163172.77,0.0005589,7]
[354612944,1740595912753,-567.25,0.0005589,120]
[354612946,1740595912763,-4605.54,0.0005589,120]
[354612948,1740595912772,-884.36,0.0005589,120]
[354612950,1740595912781,-573.56,0.0005589,120]
[354612952,1740595912790,-1964.79,0.0005589,120]
[354612954,1740595912800,-29115.5,0.0005589,120]
[354612956,1740595912810,-644.01,0.0005589,120]
[354612958,1740595912820,-1853.52,0.0005589,120]
[354612960,1740595912830,-627.73,0.0005589,120]
[354612962,1740595912840,-1150.38,0.0005589,120]
[354612964,1740595912849,-500.0,0.0005589,120]
[354612966,1740595912859,-820.33,0.0005589,120]
[354612968,1740595912871,-1232.27,0.0005589,120]
[354612970,1740595912880,-8198.21,0.0005589,120]
[354612972,1740595912890,-1218.92,0.0005589,120]
[354612974,1740595912900,-8691.74,0.0005589,120]
[354612976,1740595912910,-1991.01,0.0005589,120]
[354612978,1740595912919,-820.98,0.0005589,120]
[354612980,1740595912928,-555.9,0.0005589,120]
[354612982,1740595912938,-35881.26,0.0005589,120]
[354612984,1740595912948,-2923.8,0.0005589,120]
[354612986,1740595912961,-949.77,0.0005589,120]
[354612988,1740595912971,-1000.0,0.0005589,2]
[354612990,1740595912980,-500.0,0.0005589,120]
[354612992,1740595912991,-14356.2,0.0005589,120]
[354612994,1740595913003,-689.35,0.0005589,120]
[354612996,1740595913013,-853.36,0.0005589,120]
[354612998,1740595913023,-4865.11,0.0005589,120]
[354613000,1740595913033,-2475.11,0.0005589,120]
[354613002,1740595913042,-2671.56,0.0005589,120]
[354613004,1740595913052,-5089.13,0.0005589,120]
[354613007,1740595913061,-514.99,0.0005589,120]
[354613009,1740595913071,-44424.48,0.0005589,6]
[354613011,1740595913081,-520.61,0.0005589,120]
[354613013,1740595913091,-1173.4,0.0005589,120]
[354613015,1740595913102,-437.35152032,0.0005589,120]
[354613017,1740595913114,-3489.83,0.0005589,120]
[354613019,1740595913124,-1066.43,0.0005589,120]
[354613021,1740595913134,-1957.38,0.0005589,120]
[354613023,1740595913144,-2424.79,0.0005589,120]
[354613025,1740595913154,-21424.0,0.0005589,120]
[354613027,1740595913163,-519.69,0.0005589,120]
[354613029,1740595913173,-526.05,0.0005589,120]
[354613031,1740595913183,-1666.71,0.0005589,120]
[354613033,1740595913193,-3965.85,0.0005589,120]
[354613035,1740595913204,-500.0,0.0005589,120]
[354613037,1740595913213,-788.51,0.0005589,120]
[354613039,1740595913223,-1619.69,0.0005589,120]
[354613041,1740595913233,-1722.02,0.0005589,120]
[354613044,1740595913242,-4778.1,0.0005589,120]
[354613045,1740595913252,-2593.09,0.0005589,120]
[354613048,1740595913263,-1690.26,0.0005589,120]
[354613050,1740595913273,-812.11,0.0005589,120]
[354613052,1740595913283,-710.16,0.0005589,120]
[354613054,1740595913294,-1536.25,0.0005589,120]
[354613056,1740595913303,-626.19,0.0005589,120]
[354613057,1740595913313,-541.13,0.0005589,120]
[354613059,1740595913323,-512.95,0.0005589,120]
[354613062,1740595913333,-1851.36,0.0005589,120]
[354613064,1740595913342,-662.82,0.0005589,120]
[354613066,1740595913352,-10264.39,0.0005589,120]
[354613068,1740595913364,-810.19,0.0005589,120]
[354613070,1740595913374,-991.77,0.0005589,120]
[354613072,1740595913384,-3331.35,0.0005589,120]
[354613074,1740595913394,-5881.5,0.0005589,120]
[354613076,1740595913404,-1213.93,0.0005589,120]
[354613078,1740595913414,-2374.13,0.0005589,120]
[354613080,1740595913423,-2465.59,0.0005589,120]
[354613082,1740595913433,-782.08,0.0005589,120]
[354613084,1740595913443,-500.0,0.0005589,120]
[354613086,1740595913453,-1294.2,0.0005589,120]
[354613088,1740595913462,-7797.57,0.0005589,120]
[354613090,1740595913471,-1989.0,0.00055898,120]
[354613092,1740595913480,-1989.0,0.00055898,120]
[354613094,1740595913490,-1989.0,0.00055898,120]
[354613096,1740595913499,-1989.0,0.00055898,120]
[354613098,1740595913508,-1989.0,0.00055898,120]
[354613100,1740595913518,-1989.0,0.00055898,120]
[354613102,1740595913527,-1989.0,0.00055898,120]
[354613104,1740595913536,-1989.0,0.00055898,120]
[354613106,1740595913545,-13050.83,0.000559,30]
[354613108,1740595913555,-1481.88,0.000559,30]
[354613110,1740595913564,-14180.37,0.000559,30]
[354613112,1740595913573,-10000.0,0.00056,56]
[354613128,1740595913583,-20000.0,0.00056,120]
[354613131,1740595913734,-150.0,0.00056089,120]
[354613133,1740595913745,-538.0,0.00056089,120]
[354613135,1740595913756,-1964.0,0.00056089,120]
[354613137,1740595913766,-2281.0,0.00056089,120]
[354613139,1740595913775,-450.0,0.00056144,15]
[354613141,1740595913785,-500.0,0.00056164,120]
[354613143,1740595913795,-828.49,0.00056164,120]
[354613145,1740595913804,-500.0,0.00056164,120]
[354613147,1740595913814,-840.04,0.00056164,120]
[354613149,1740595913823,-799.37,0.00056164,120]
[354613151,1740595913833,-526.23,0.00056164,120]
[354613154,1740595913843,-525.22,0.00056164,120]
[354613155,1740595913853,-692.43,0.00056164,120]
[354613158,1740595913864,-566.11,0.00056164,14]
[354613160,1740595913873,-1177.15,0.00056164,120]
[354613163,1740595913892,-500.0,0.00056164,120]
[354613165,1740595913905,-1194.96,0.00056164,120]
[354613167,1740595913915,-500.0,0.00056164,120]
[354613169,1740595913924,-1734.78,0.00056164,120]
[354613171,1740595913935,-500.0,0.00056164,120]
[354613173,1740595913945,-1448.26,0.00056164,120]
[354613175,1740595913959,-271.67370485,0.00056164,120]
[354613177,1740595913968,-772.59,0.00056164,120]
[354613179,1740595913978,-576.98,0.00056164,120]
[354613181,1740595913987,-599.45,0.00056164,120]
[354613183,1740595914001,-582.65,0.00056164,120]
[354613185,1740595914012,-518.67,0.00056164,120]
[354613187,1740595914021,-524.39,0.00056164,120]
[354613189,1740595914032,-540.34,0.00056164,120]
[354613191,1740595914042,-707.66,0.00056164,120]
[354613193,1740595914052,-879.42,0.00056164,120]
[354613195,1740595914062,-894.65,0.00056164,120]
[354613197,1740595914072,-500.0,0.00056164,120]
[354613200,1740595914082,-523.35,0.00056164,120]
[354613202,1740595914091,-500.0,0.00056164,120]
[354613204,1740595914101,-500.0,0.00056164,120]
[354613206,1740595914111,-500.0,0.00056164,120]
[354613208,1740595914122,-630.3,0.00056164,120]
[354613210,1740595914132,-500.0,0.00056164,120]
[354613212,1740595914141,-757.41,0.00056164,120]
[354613214,1740595914151,-618.62,0.00056164,120]
[354613216,1740595914161,-1759.91,0.00056164,120]
[354613218,1740595914171,-1105.48,0.00056164,120]
[354613220,1740595914180,-849.13,0.00056164,120]
[354613222,1740595914190,-500.0,0.00056164,120]
[354613224,1740595914200,-578.35,0.00056164,120]
[354613226,1740595914211,-827.78,0.00056164,120]
[354613228,1740595914220,-1260.45,0.00056164,120]
[354613230,1740595914231,-624.52,0.00056164,120]
[354613232,1740595914240,-1553.65,0.00056164,120]
[354613234,1740595914250,-515.01,0.00056164,120]
[354613236,1740595914260,-558.26,0.00056164,120]
[354613238,1740595914270,-700.01,0.00056164,120]
[354613240,1740595914280,-527.02,0.00056164,120]
[354613242,1740595914290,-751.69,0.00056164,120]
[354613244,1740595914300,-500.0,0.00056164,15]
[354613246,1740595914310,-1613.85,0.00056164,120]
[354613248,1740595914320,-1300.61,0.00056164,120]
[354613250,1740595914329,-667.88,0.00056164,120]
[354613252,1740595914338,-2143.47,0.00056164,120]
[354613254,1740595914348,-872.97,0.00056164,120]
[354613256,1740595914358,-500.0,0.00056164,120]
[354613258,1740595914370,-1346.61,0.00056164,120]
[354613260,1740595914379,-2396.98,0.00056164,120]
[354613262,1740595914390,-500.0,0.00056164,120]
[354613264,1740595914399,-640.62,0.00056164,120]
[354613266,1740595914408,-1154.76,0.00056164,120]
[354613268,1740595914418,-500.0,0.00056164,120]
[354613271,1740595914428,-500.0,0.00056164,120]
[354613273,1740595914439,-500.0,0.00056164,120]
[354613275,1740595914448,-1463.13,0.00056164,120]
[354613277,1740595914457,-500.0,0.00056164,120]
[354613279,1740595914466,-2977.1,0.00056164,120]
[354613281,1740595914476,-1010.42,0.00056164,120]
[354613283,1740595914486,-3444.22,0.00056164,120]
[354613285,1740595914495,-522.19,0.00056164,30]
[354613287,1740595914505,-2884.86,0.00056164,120]
[354613289,1740595914515,-989.6,0.00056164,120]
[354613291,1740595914526,-1121.27,0.00056164,120]
[354613293,1740595914535,-1101.44,0.00056164,120]
[354613295,1740595914545,-497.51042542,0.00056164,45]
[354613297,1740595914555,-1764.14,0.00056164,120]
[354613299,1740595914565,-588.25,0.00056164,120]
[354613301,1740595914575,-2377.1,0.00056164,120]
[354613303,1740595914584,-852.55,0.00056164,120]
[354613305,1740595914593,-1100.79,0.00056164,120]
[354613307,1740595914603,-1552.98,0.00056164,120]
[354613309,1740595914612,-500.0,0.00056164,120]
[354613311,1740595914624,-500.0,0.00056164,120]
[354613313,1740595914635,-543.36,0.00056164,120]
[354613315,1740595914645,-797.98,0.00056164,120]
[354613317,1740595914656,-951.27,0.00056164,120]
[354613319,1740595914666,-500.0,0.00056164,120]
[354613321,1740595914676,-888.97,0.00056164,120]
[354613323,1740595914687,-612.57,0.00056164,120]
[354613325,1740595914697,-2699.87,0.00056164,120]
[354613327,1740595914706,-1580.11,0.00056164,120]
[354613329,1740595914716,-500.0,0.00056164,120]
[354613331,1740595914725,-1704.51,0.00056164,120]
[354613333,1740595914735,-500.0,0.00056164,120]
[354613335,1740595914745,-788.27,0.00056164,120]
[354613337,1740595914754,-1099.83,0.00056164,120]
[354613339,1740595914764,-1902.4,0.00056164,120]
[354613341,1740595914774,-878.04,0.00056164,120]
[354613343,1740595914783,-500.0,0.00056164,120]
[354613345,1740595914794,-500.0,0.00056164,120]
[354613347,1740595914804,-500.0,0.00056164,120]
[354613349,1740595914815,-220.73623303,0.00056164,120]
[354613351,1740595914827,-1372.49,0.00056164,120]
[354613353,1740595914838,-500.0,0.00056164,120]
[354613356,1740595914850,-2314.27,0.00056164,120]
[354613358,1740595914861,-1486.63,0.00056164,120]
[354613359,1740595914881,-822.39,0.00056164,120]
[354613361,1740595914892,-901.59,0.00056164,120]
[354613364,1740595914905,-1677.06,0.00056164,120]
[354613365,1740595914916,-1205.34,0.00056164,120]
[354613368,1740595914928,-500.0,0.00056164,120]
[354613370,1740595914939,-2294.05,0.00056164,120]
[354613372,1740595914955,-500.0,0.00056164,120]
[354613374,1740595914968,-1120.61,0.00056164,120]
[354613376,1740595914980,-604.64,0.00056164,120]
[354613377,1740595914993,-500.0,0.00056164,120]
[354613380,1740595915011,-500.0,0.00056164,120]
[354613381,1740595915024,-1074.36,0.00056164,120]
[354613383,1740595915036,-527.7,0.00056164,120]
[354613386,1740595915050,-806.28,0.00056164,120]
[354613387,1740595915062,-1834.97,0.00056164,120]
[354613389,1740595915074,-500.0,0.00056164,120]
[354613392,1740595915087,-841.31,0.00056164,120]
[354613394,1740595915100,-1149.59,0.00056164,120]
[354613396,1740595915112,-500.0,0.00056164,120]
[354613397,1740595915135,-500.0,0.00056164,120]
[354613399,1740595915147,-504.48,0.00056164,120]
[354613401,1740595915159,-610.98,0.00056164,120]
[354613403,1740595915172,-500.0,0.00056164,120]
[354613405,1740595915185,-919.11,0.00056164,120]
[354613407,1740595915197,-1139.22,0.00056164,120]
[354613409,1740595915210,-1427.81,0.00056164,120]
[354613411,1740595915222,-3966.28,0.00056164,120]
[354613413,1740595915233,-1179.25,0.00056164,120]
[354613415,1740595915244,-643.49,0.00056164,120]
[354613417,1740595915256,-9738.58,0.00056164,120]
[354613419,1740595915268,-801.82,0.00056164,120]
[354613421,1740595915281,-500.0,0.00056164,120]
[354613423,1740595915292,-911.86,0.00056164,120]
[354613425,1740595915303,-552.77,0.00056164,120]
[354613427,1740595915315,-500.05,0.00056164,120]
[354613429,1740595915326,-500.0,0.00056164,120]
[354613432,1740595915336,-587.37,0.00056164,120]
[354613433,1740595915346,-11052.45,0.00056164,120]
[354613435,1740595915358,-3684.76,0.00056164,120]
[354613438,1740595915374,-517.75,0.00056164,120]
[354613440,1740595915386,-3499.84,0.00056164,120]
[354613441,1740595915398,-1015.05,0.00056164,120]
[354613443,1740595915409,-13581.8,0.00056164,120]
[354613446,1740595915421,-1570.34,0.00056164,120]
[354613448,1740595915433,-15292.47,0.00056164,120]
[354613450,1740595915444,-500.0,0.00056164,120]
[354613451,1740595915456,-1020.31,0.00056164,120]
[354613454,1740595915467,-690.39,0.00056164,120]
[354613456,1740595915479,-3105.4,0.00056164,120]
[354613458,1740595915490,-834.44,0.00056164,30]
[354613459,1740595915501,-2309.16,0.00056164,120]
[354613462,1740595915514,-10799.99,0.00056164,120]
[354613464,1740595915525,-850.01,0.00056164,120]
[354613465,1740595915537,-500.0,0.00056164,120]
[354613467,1740595915547,-4233.08,0.00056164,120]
[354613469,1740595915558,-4180.32,0.00056164,120]
[354613471,1740595915569,-2800.4,0.00056164,120]
[354613474,1740595915581,-2084.49,0.00056164,120]
[354613476,1740595915593,-583.3,0.00056164,120]
[354613478,1740595915604,-2951.73,0.00056164,120]
[354613479,1740595915617,-2431.59,0.00056164,120]
[354613481,1740595915628,-1918.79,0.00056164,120]
[354613483,1740595915638,-1679.17,0.00056164,120]
[354613485,1740595915648,-514.65,0.00056164,120]
[354613487,1740595915659,-2627.04,0.00056164,120]
[354613489,1740595915670,-1409.36,0.00056164,120]
[354613491,1740595915680,-785.21,0.00056164,120]
[354613493,1740595915691,-834.81,0.00056164,120]
[354613495,1740595915702,-3016.52,0.00056164,120]
[354613497,1740595915712,-2867.38,0.00056164,120]
[354613499,1740595915722,-684.79,0.00056164,120]
[354613501,1740595915731,-928.1,0.00056164,120]
[354613503,1740595915741,-511.43,0.00056164,120]
[354613505,1740595915751,-163172.77,0.00056164,7]
[354613507,1740595915761,-567.25,0.00056164,120]
[354613509,1740595915771,-4605.54,0.00056164,120]
[354613511,1740595915781,-884.36,0.00056164,120]
[354613513,1740595915791,-573.56,0.00056164,120]
[354613515,1740595915802,-1964.79,0.00056164,120]
[354613517,1740595915812,-29115.5,0.00056164,120]
[354613519,1740595915822,-644.01,0.00056164,120]
[354613521,1740595915832,-1853.52,0.00056164,120]
[354613523,1740595915842,-627.73,0.00056164,120]
[354613525,1740595915852,-1150.38,0.00056164,120]
[354613527,1740595915862,-500.0,0.00056164,120]
[354613529,1740595915874,-820.33,0.00056164,120]
[354613531,1740595915883,-1232.27,0.00056164,120]
[354613533,1740595915894,-8198.21,0.00056164,120]
[354613535,1740595915905,-1218.92,0.00056164,120]
[354613537,1740595915916,-8691.74,0.00056164,120]
[354613539,1740595915926,-1991.01,0.00056164,120]
[354613541,1740595915936,-820.98,0.00056164,120]
[354613543,1740595915945,-555.9,0.00056164,120]
[354613545,1740595915959,-35881.26,0.00056164,120]
[354613547,1740595915971,-2923.8,0.00056164,120]
[354613549,1740595915981,-949.77,0.00056164,120]
[354613551,1740595915992,-1000.0,0.00056164,2]
[354613553,1740595916005,-500.0,0.00056164,120]
[354613555,1740595916016,-14356.2,0.00056164,120]
[354613557,1740595916026,-689.35,0.00056164,120]
[354613559,1740595916036,-853.36,0.00056164,120]
[354613560,1740595916046,-4865.11,0.00056164,120]
[354613562,1740595916056,-2475.11,0.00056164,120]
[354613565,1740595916066,-2671.56,0.00056164,120]
[354613566,1740595916076,-5089.13,0.00056164,120]
[354613569,1740595916086,-514.99,0.00056164,120]
[354613570,1740595916096,-44424.48,0.00056164,6]
[354613572,1740595916106,-520.61,0.00056164,120]
[354613574,1740595916118,-1173.4,0.00056164,120]
[354613577,1740595916128,-3489.83,0.00056164,120]
[354613578,1740595916138,-1066.43,0.00056164,120]
[354613581,1740595916148,-1957.38,0.00056164,120]
[354613583,1740595916158,-2424.79,0.00056164,120]
[354613585,1740595916167,-21424.0,0.00056164,120]
[354613586,1740595916177,-519.69,0.00056164,120]
[354613588,1740595916187,-526.05,0.00056164,120]
[354613590,1740595916197,-1666.71,0.00056164,120]
[354613592,1740595916207,-3965.85,0.00056164,120]
[354613594,1740595916217,-500.0,0.00056164,120]
[354613596,1740595916226,-788.51,0.00056164,120]
[354613598,1740595916235,-1619.69,0.00056164,120]
[354613600,1740595916245,-1722.02,0.00056164,120]
[354613602,1740595916255,-4778.1,0.00056164,120]
[354613604,1740595916265,-2593.09,0.00056164,120]
[354613606,1740595916275,-1690.26,0.00056164,120]
[354613608,1740595916286,-812.11,0.00056164,120]
[354613610,1740595916297,-710.16,0.00056164,120]
[354613612,1740595916307,-1536.25,0.00056164,120]
[354613614,1740595916316,-626.19,0.00056164,120]
[354613616,1740595916326,-541.13,0.00056164,120]
[354613618,1740595916335,-512.95,0.00056164,120]
[354613620,1740595916345,-1851.36,0.00056164,120]
[354613622,1740595916354,-662.82,0.00056164,120]
[354613624,1740595916366,-10264.39,0.00056164,120]
[354613626,1740595916376,-810.19,0.00056164,120]
[354613628,1740595916385,-991.77,0.00056164,120]
[354613630,1740595916395,-3331.35,0.00056164,120]
[354613632,1740595916405,-5881.5,0.00056164,120]
[354613634,1740595916416,-1213.93,0.00056164,120]
[354613636,1740595916426,-2374.13,0.00056164,120]
[354613638,1740595916435,-2465.59,0.00056164,120]
[354613640,1740595916444,-782.08,0.00056164,120]
[354613642,1740595916454,-451.59283979,0.00056164,120]
[354613644,1740595916464,-1294.2,0.00056164,120]
[354613646,1740595916473,-7797.57,0.00056164,120]
[354613648,1740595916483,-500.0,0.00056438,120]
[354613650,1740595916493,-828.49,0.00056438,120]
[354613652,1740595916502,-500.0,0.00056438,120]
[354613654,1740595916511,-840.04,0.00056438,120]
[354613656,1740595916520,-799.37,0.00056438,120]
[354613658,1740595916530,-526.23,0.00056438,120]
[354613660,1740595916539,-525.22,0.00056438,120]
[354613662,1740595916549,-692.43,0.00056438,120]
[354613663,1740595916559,-566.11,0.00056438,14]
[354613665,1740595916570,-1177.15,0.00056438,120]
[354613667,1740595916581,-500.0,0.00056438,120]
[354613669,1740595916591,-1194.96,0.00056438,120]
[354613671,1740595916602,-500.0,0.00056438,120]
[354613673,1740595916612,-1734.78,0.00056438,120]
[354613675,1740595916626,-500.0,0.00056438,120]
[354613677,1740595916636,-1448.26,0.00056438,120]
[354613679,1740595916646,-772.59,0.00056438,120]
[354613681,1740595916656,-576.98,0.00056438,120]
[354613683,1740595916666,-599.45,0.00056438,120]
[354613685,1740595916677,-582.65,0.00056438,120]
[354613687,1740595916687,-518.67,0.00056438,120]
[354613689,1740595916697,-524.39,0.00056438,120]
[354613691,1740595916707,-540.34,0.00056438,120]
[354613693,1740595916717,-707.66,0.00056438,120]
[354613695,1740595916726,-879.42,0.00056438,120]
[354613696,1740595916736,-894.65,0.00056438,120]
[354613698,1740595916746,-569.08,0.00056438,120]
[354613700,1740595916756,-523.35,0.00056438,120]
[354613702,1740595916765,-500.0,0.00056438,120]
[354613717,1740595916911,-500.0,0.00056438,120]
[354613719,1740595916923,-500.0,0.00056438,120]
[354613721,1740595916933,-630.3,0.00056438,120]
[354613723,1740595916942,-548.48455298,0.00056438,120]
[354613725,1740595916955,-757.41,0.00056438,120]
[354613727,1740595916965,-618.62,0.00056438,120]
[354613729,1740595916975,-1759.91,0.00056438,120]
[354613731,1740595916985,-1105.48,0.00056438,120]
[354613733,1740595916996,-849.13,0.00056438,120]
[354613735,1740595917008,-500.0,0.00056438,120]
[354613737,1740595917019,-578.35,0.00056438,120]
[354613739,1740595917028,-827.78,0.00056438,120]
[354613741,1740595917040,-1260.45,0.00056438,120]
[354613743,1740595917050,-624.52,0.00056438,120]
[354613745,1740595917060,-1553.65,0.00056438,120]
[354613747,1740595917070,-515.01,0.00056438,120]
[354613749,1740595917079,-558.26,0.00056438,120]
[354613751,1740595917090,-700.01,0.00056438,120]
[354613753,1740595917099,-527.02,0.00056438,120]
[354613754,1740595917110,-751.69,0.00056438,120]
[354613756,1740595917122,-500.0,0.00056438,15]
[354613759,1740595917132,-1613.85,0.00056438,120]
[354613760,1740595917142,-1300.61,0.00056438,120]
[354613762,1740595917151,-667.88,0.00056438,120]
[354613764,1740595917160,-2143.47,0.00056438,120]
[354613766,1740595917170,-872.97,0.00056438,120]
[354613768,1740595917180,-500.0,0.00056438,120]
[354613770,1740595917190,-1346.61,0.00056438,120]
[354613772,1740595917200,-2396.98,0.00056438,120]
[354613774,1740595917211,-500.0,0.00056438,120]
[354613776,1740595917221,-640.62,0.00056438,120]
[354613778,1740595917232,-1154.76,0.00056438,120]
[354613780,1740595917242,-500.0,0.00056438,120]
[354613782,1740595917252,-500.0,0.00056438,120]
[354613784,1740595917262,-500.0,0.00056438,120]
[354613786,1740595917273,-1463.13,0.00056438,120]
[354613788,1740595917283,-500.0,0.00056438,120]
[354613791,1740595917294,-2977.1,0.00056438,120]
[354613793,1740595917303,-3444.22,0.00056438,120]
[354613795,1740595917314,-1010.42,0.00056438,120]
[354613797,1740595917323,-522.19,0.00056438,30]
[354613799,1740595917333,-2884.86,0.00056438,120]
[354613801,1740595917343,-989.6,0.00056438,120]
[354613803,1740595917353,-1121.27,0.00056438,120]
[354613805,1740595917365,-1101.44,0.00056438,120]
[354613807,1740595917375,-1764.14,0.00056438,120]
[354613809,1740595917386,-588.25,0.00056438,120]
[354613811,1740595917395,-2377.1,0.00056438,120]
[354613813,1740595917405,-852.55,0.00056438,120]
[354613814,1740595917415,-1100.79,0.00056438,120]
[354613816,1740595917425,-1552.98,0.00056438,120]
[354613818,1740595917435,-168.73937865,0.00056438,120]
[354613820,1740595917445,-500.0,0.00056438,120]
[354613822,1740595917455,-543.36,0.00056438,120]
[354613824,1740595917465,-797.98,0.00056438,120]
[354613826,1740595917476,-951.27,0.00056438,120]
[354613828,1740595917486,-505.49906312,0.00056438,120]
[354613830,1740595917496,-888.97,0.00056438,120]
[354613832,1740595917506,-612.57,0.00056438,120]
[354613834,1740595917517,-2699.87,0.00056438,120]
[354613836,1740595917527,-1580.11,0.00056438,120]
[354613838,1740595917537,-500.0,0.00056438,120]
[354613840,1740595917546,-1704.51,0.00056438,120]
[354613842,1740595917555,-500.0,0.00056438,120]
[354613844,1740595917565,-788.27,0.00056438,120]
[354613846,1740595917575,-1099.83,0.00056438,120]
[354613848,1740595917584,-1902.4,0.00056438,120]
[354613850,1740595917594,-878.04,0.00056438,120]
[354613852,1740595917604,-500.0,0.00056438,120]
[354613855,1740595917615,-500.0,0.00056438,120]
[354613856,1740595917625,-500.0,0.00056438,120]
[354613858,1740595917634,-1372.49,0.00056438,120]
[354613860,1740595917643,-174.40305399,0.00056438,120]
[354613862,1740595917653,-2314.27,0.00056438,120]
[354613864,1740595917663,-1486.63,0.00056438,120]
[354613865,1740595917672,-822.39,0.00056438,120]